{"text_format":"3","workbook":"xlsx","n_sheets":3,"sheets":["Затверджені запаси","Затверджені активи","Затверджені зобов’язання"],"not_rendered":{"defined_names":1},"read":"whole","date_system":"1900"}

{"sheet":"Затверджені запаси","index":0,"n_rows":45,"n_cols":35,"rows_kept":45,"merged":[[0,1,0,30],[0,31,0,39],[1,1,5,39],[6,1,6,6],[6,7,6,39],[7,1,7,6],[7,7,7,39],[9,1,9,6],[9,7,9,39],[10,1,10,6],[10,7,10,39],[11,1,11,6],[11,7,11,20],[11,21,11,26],[11,27,11,30],[11,31,11,33],[11,34,11,39],[12,1,12,6],[12,7,12,20],[12,21,12,26],[13,1,13,6],[13,7,13,20],[13,21,13,26],[14,1,14,6],[14,7,14,20],[14,21,14,26],[15,1,15,6],[17,1,17,39],[18,1,18,6],[18,7,18,12],[18,13,18,15],[18,16,18,18],[18,19,18,26],[18,27,18,31],[18,32,18,39],[19,1,19,6],[19,7,19,12],[19,13,19,15],[19,16,19,18],[19,19,19,26],[19,27,19,31],[19,32,19,39],[20,1,20,6],[20,7,20,12],[20,13,20,15],[20,16,20,18],[20,19,20,26],[20,27,20,31],[20,32,20,39],[21,1,21,6],[21,7,21,12],[21,13,21,15],[21,16,21,18],[21,19,21,26],[21,27,21,31],[21,32,21,39],[22,1,22,6],[22,7,22,12],[22,13,22,15],[22,16,22,18],[22,19,22,26],[22,27,22,31],[22,32,22,39],[23,1,23,6],[23,7,23,12],[23,13,23,15],[23,16,23,18],[23,19,23,26],[23,27,23,31],[23,32,23,39],[25,1,25,39],[26,1,26,6],[26,7,26,12],[26,13,26,18],[26,19,26,26],[26,27,26,31],[26,32,26,39],[27,1,27,6],[27,7,27,12],[27,13,27,18],[27,19,27,26],[27,27,27,31],[27,32,27,39],[28,1,28,6],[28,7,28,12],[28,13,28,18],[28,19,28,26],[28,27,28,31],[28,32,28,39],[29,1,29,6],[29,7,29,12],[29,13,29,18],[29,19,29,26],[29,27,29,31],[29,32,29,39],[30,1,30,6],[30,7,30,12],[30,13,30,18],[30,19,30,26],[30,27,30,31],[30,32,30,39],[31,1,31,6],[31,7,31,12],[31,13,31,18],[31,19,31,26],[31,27,31,31],[31,32,31,39],[33,1,33,12],[33,14,33,39],[34,1,34,12],[34,14,34,21],[34,22,34,25],[34,26,34,33],[34,34,34,39],[35,2,35,12],[35,14,35,21],[35,22,35,25],[35,26,35,33],[35,34,35,39],[36,2,36,12],[36,14,36,21],[36,22,36,25],[36,26,36,33],[36,34,36,39],[37,2,37,12],[37,14,37,21],[37,22,37,25],[37,26,37,33],[37,34,37,39],[38,2,38,12],[38,14,38,21],[38,22,38,25],[38,26,38,33],[38,34,38,39],[39,2,39,12],[39,14,39,21],[39,22,39,25],[39,26,39,33],[39,34,39,39],[40,2,40,12],[40,14,40,21],[40,22,40,25],[40,26,40,33],[40,34,40,39],[41,2,41,12],[41,14,41,21],[41,22,41,25],[41,26,41,33],[41,34,41,39],[42,2,42,12],[42,14,42,21],[42,22,42,25],[42,26,42,33],[42,34,42,38],[43,2,43,12],[43,14,43,21],[43,22,43,25],[43,26,43,33],[43,34,43,39],[44,2,44,12],[44,14,44,21],[44,22,44,25],[44,26,44,33],[44,34,44,39]]}
[]
[null,"Затверджені запаси"]
[]
[]
[]
[]
[null,"Імена виконавців",{"$nulls":5},"Кирило Паляниця"]
[null,"Контактна інформація",{"$nulls":5},"вул. Кутова, 123, м. Миколаїв 12345, Україна"]
[]
[null,"Ім’я померлого",{"$nulls":5},"Сергій Волощенко"]
[null,"Поштова адреса",{"$nulls":5},"вул. Каштанова, 6789"]
[null,"Місто",{"$nulls":5},"м. Київ 04053\t",{"$nulls":13},"Область",{"$nulls":5},"Київ",{"$nulls":3},"Поштовий індекс",null,null,98052]
[null,"Номер соціального страхування",{"$nulls":5},"AAA-GG-SSSS",{"$nulls":13},"Професія",{"$nulls":5},"Стоматолог"]
[null,"Дата народження",{"$nulls":5},"1965-12-08",{"$nulls":13},"Місце народження",{"$nulls":5},"Київ"]
[null,"Дата смерті",{"$nulls":5},{"$f":"TODAY()-3","v":"2022-05-13"},{"$nulls":13},"Місце смерті",{"$nulls":5},"Київ"]
[null,"Додаткові відомості"]
[]
[null,"  Чоловік або дружина, діти та інші залежні особи"]
[null,"Ім’я",{"$nulls":5},"Зв’язок",{"$nulls":5},"Залежна особа",null,null,"Вік",null,null,"Адреса",{"$nulls":7},"Номер телефону",{"$nulls":4},"Електронна адреса"]
[null,"Віра Сокур",{"$nulls":5},"Особистий представник",{"$nulls":5},"Ні",null,null,30]
[null,"Вікторія Хоменко",{"$nulls":5},"Чоловік або дружина",{"$nulls":5},"Так",null,null,35]
[null,"Олександр Петренко",{"$nulls":5},"Дитина",{"$nulls":5},"Так",null,null,12]
[]
[]
[]
[null,"Професійні консультанти"]
[null,"Тип консультанта",{"$nulls":5},"Контактна особа",{"$nulls":5},"Компанія",{"$nulls":5},"Адреса",{"$nulls":7},"Номер телефону",{"$nulls":4},"Електронна адреса"]
[null,"Бухгалтер"]
[null,"Адвокат або нотаріус"]
[null,"Інше"]
[]
[]
[]
[null,"  Затверджений список",{"$nulls":12},"  Затверджені запаси"]
[null,"    Елементи затвердженого списку",{"$nulls":12},"Затверджені активи",{"$nulls":7},"Вартість (₴)",{"$nulls":3},"Затверджені зобов’язання",{"$nulls":7},"Вартість (₴)"]
[null,"✔","Остання воля, Заповіт або інші документи",{"$nulls":11},{"$f":"'Затверджені активи'!B12","v":"Банківські рахунки"},{"$nulls":7},{"$f":"'Затверджені активи'!G20","v":{"v":0,"d":"0.00 ₴"}},{"$nulls":3},{"$f":"'Затверджені зобов’язання'!B11","v":"Іпотеки"},{"$nulls":7},{"$f":"'Затверджені зобов’язання'!G18","v":{"v":0,"d":"0.00 ₴"}}]
[null,"✔","Угода про оренду безпечного депозиту та ключі",{"$nulls":11},{"$f":"'Затверджені активи'!B22","v":"Особисті інвестиції"},{"$nulls":7},{"$f":"'Затверджені активи'!G30","v":{"v":0,"d":"0.00 ₴"}},{"$nulls":3},{"$f":"'Затверджені зобов’язання'!B21","v":"Особисті позики та кредитні лінії"},{"$nulls":7},{"$f":"'Затверджені зобов’язання'!G28","v":{"v":0,"d":"0.00 ₴"}}]
[null,"✖","Паролі для комп’ютерів і онлайнових облікових записів",{"$nulls":11},{"$f":"'Затверджені активи'!B32","v":"Ділові інтереси"},{"$nulls":7},{"$f":"'Затверджені активи'!G40","v":{"v":0,"d":"0.00 ₴"}},{"$nulls":3},{"$f":"'Затверджені зобов’язання'!B31","v":"Ділові інтереси"},{"$nulls":7},{"$f":"'Затверджені зобов’язання'!G38","v":{"v":0,"d":"0.00 ₴"}}]
[null,"✔","Чинні угоди про довірчу власність",{"$nulls":11},{"$f":"'Затверджені активи'!B42","v":"Нерухомість"},{"$nulls":7},{"$f":"'Затверджені активи'!G50","v":{"v":0,"d":"0.00 ₴"}},{"$nulls":3},{"$f":"'Затверджені зобов’язання'!B41","v":"Кредитні картки"},{"$nulls":7},{"$f":"'Затверджені зобов’язання'!G48","v":{"v":0,"d":"0.00 ₴"}}]
[null,"✔","Поліси страхування життя, здоров’я та від нещасних випадків",{"$nulls":11},{"$f":"'Затверджені активи'!B52","v":"Пенсійні плани"},{"$nulls":7},{"$f":"'Затверджені активи'!G60","v":{"v":0,"d":"0.00 ₴"}},{"$nulls":3},{"$f":"'Затверджені зобов’язання'!B51","v":"Інші зобов’язання"},{"$nulls":7},{"$f":"'Затверджені зобов’язання'!G58","v":{"v":0,"d":"0.00 ₴"}}]
[null,"✔","Фінансові звіти",{"$nulls":11},{"$f":"'Затверджені активи'!B62","v":"Страхування"},{"$nulls":7},{"$f":"'Затверджені активи'!G70","v":{"v":0,"d":"0.00 ₴"}}]
[null,"✔","Податкові декларації за останні три роки",{"$nulls":11},{"$f":"'Затверджені активи'!B72","v":"Приватні позики та іпотечні кредити"},{"$nulls":7},{"$f":"'Затверджені активи'!G80","v":{"v":0,"d":"0.00 ₴"}}]
[null,"✔","Сертифікати про народження та смерть",{"$nulls":11},{"$f":"'Затверджені активи'!B82","v":"Відсотки в інших нерухомостях і довірчих об’єктах"},{"$nulls":7},{"$f":"'Затверджені активи'!G90","v":{"v":0,"d":"0.00 ₴"}}]
[null,"✖","Декларації про виплати, іпотечні кредити та оренду",{"$nulls":11},{"$f":"'Затверджені активи'!B92","v":"Рухоме майно та інші активи"},{"$nulls":7},{"$f":"'Затверджені активи'!G100","v":{"v":0,"d":"0.00 ₴"}}]
[null,"☐","Неоплачені рахунки та нотатки",{"$nulls":11},"Загальна сума активів",{"$nulls":7},{"$f":"'Затверджені активи'!G10","v":{"v":0,"d":"0.00 ₴"}},{"$nulls":3},"Загальна сума зобов’язань",{"$nulls":7},{"$f":"SUM(AI36:AN44)","v":{"v":0,"d":"0.00 ₴"}}]

{"sheet":"Затверджені активи","index":1,"n_rows":100,"n_cols":8,"rows_kept":100,"merged":[[0,1,0,7],[1,1,5,7],[6,1,7,7],[11,1,11,7],[12,1,12,7],[21,1,21,7],[22,1,22,7],[31,1,31,7],[32,1,32,7],[41,1,41,7],[42,1,42,7],[51,1,51,7],[52,1,52,7],[61,1,61,7],[62,1,62,7],[71,1,71,7],[72,1,72,7],[81,1,81,7],[82,1,82,7],[91,1,91,7],[92,1,92,7]]}
[]
[null,"Затверджені активи"]
[]
[]
[]
[]
[null,"За допомогою цього аркуша можна створити запаси затверджених активів. Вам потрібно буде визначити ринкову вартість кожного активу майна в день смерті. Перегляньте всі записи, зокрема фінансові звіти, страхові поліси та податкові декларації, щоб отримати ринкову вартість. Крім того, може знадобитися оцінка особистих речей (наприклад, витворів мистецтва, колекцій, антикваріату тощо). Обов’язково включіть в запаси іноземні активи, як-от нерухомість, цінні папери або закордонні ділові інтереси. Можливо варто отримати професійну допомогу, щоб визначити точну ринкову вартість іноземних активів."]
[]
[]
[null,"Усього активів",{"$nulls":4},{"$f":"tblБанківськіРахунки[[#Totals],[Баланс ]]+tblОсобистіІнвестиції[[#Totals],[Ринкова вартість]]+tblДіловіІнтереси[[#Totals],[Вартість ]]+tblНерухомість[[#Totals],[Ринкова ціна]]+tblПенсійніПлани[[#Totals],[Вартість ]]+tblСтрахування[[#Totals],[Грошова вартість ]]+tblІпотечніКредити[[#Totals],[Залишок боргу ]]+tblДовірчаВласність[[#Totals],[Сума розподілу]]+tblІншіАктиви[[#Totals],[Вартість ]]","v":{"v":0,"d":"0.00 ₴"}}]
[]
[null,"Банківські рахунки"]
[null,"Складіть список усіх банківських рахунків, зокрема готівки, дорожніх чеків, грошових замовлень і рахунків у комерційних банках, банках заощадження, кредитних спілках тощо. Включіть усі імена, вказані в рахунку, і фактичну грошову вартість, яка посилається на точну суму в момент смерті."]
[null,"Фінансова установа ","Адреса","Телефон","Номер рахунку","Тип облікового запису","Баланс ","Нотатки"]
[]
[]
[]
[]
[]
[null,"Підсумок",{"$nulls":4},{"$f":"SUBTOTAL(109,tblБанківськіРахунки[[Баланс ]])","v":{"v":0,"d":"0.00 ₴"}}]
[]
[null,"Особисті інвестиції"]
[null,"Складіть список грошових рахунків, маржинальних рахунків, рахунків для неоподатковуваних заощаджень, зареєстрованих планів пенсійних заощаджень (RRSP), зареєстрованих фондів пенсійного прибутку (RRIF), заблокованих RRIF і RRSP, фондів життєвого доходу, фондів призначеного пенсійного прибутку, зареєстрованих планів заощаджень на навчання, ануїтетів тощо."]
[null,"Компанія","Адреса","Телефон","Номер рахунку","Бенефіціарій","Ринкова вартість","Нотатки"]
[]
[]
[]
[]
[]
[null,"Підсумок",{"$nulls":4},{"$f":"SUBTOTAL(109,tblОсобистіІнвестиції[Ринкова вартість])","v":{"v":0,"d":"0.00 ₴"}}]
[]
[null,"Ділові інтереси"]
[null,"Складіть список усіх ділових інтересів, зокрема одноосібних компаній, професійних практик, корпорацій, партнерств, компаній з обмеженою відповідальністю та партнерських відносин, спільних проектів та інших некомерційних організацій. "]
[null,"Назва компанії","Адреса","Телефон","Контакт","Тип","Вартість ","Нотатки"]
[]
[]
[]
[]
[]
[null,"Підсумок",{"$nulls":4},{"$f":"SUBTOTAL(109,tblДіловіІнтереси[[Вартість ]])","v":{"v":0,"d":"0.00 ₴"}}]
[]
[null,"Нерухомість"]
[null,"Складіть список дійсної власності, власником, співвласником або зацікавленою особою якої була померла особа та/або чоловік/дружина померлої особи, включно з власністю, придбаною в рекреаційних цілях. Отримайте копії справ. Опишіть нерухомість, вказуючи фізичну адресу. Складіть список ринкової вартості власності на основі останньої оцінки податковим оцінювачем."]
[null,"Адреса","Титул","Телефон","Контакт","Вартість покупки","Ринкова ціна","Нотатки"]
[]
[]
[]
[]
[]
[null,"Підсумок",{"$nulls":3},{"$f":"SUBTOTAL(109,tblНерухомість[Вартість покупки])","v":{"v":0,"d":"0.00 ₴"}},{"$f":"SUBTOTAL(109,tblНерухомість[Ринкова ціна])","v":{"v":0,"d":"0.00 ₴"}}]
[]
[null,"Пенсійні плани"]
[null,"Складіть список визначених пільг, грошових покупок або визначених внесків, DPSP або групові RRSP тощо."]
[null,"Компанія","Телефон","Тип плану","Бенефіціарій","Електронна адреса","Вартість ","Нотатки"]
[]
[]
[]
[]
[]
[null,"Підсумок",{"$nulls":4},{"$f":"SUBTOTAL(109,tblПенсійніПлани[[Вартість ]])","v":{"v":0,"d":"0.00 ₴"}}]
[]
[null,"Страхування"]
[null,"Додайте чинну довірчу власність, поліси страхування життя з іменованими отримувачами та рахунки інвестицій, які передаються після смерті, як незатверджені активи. Якщо суд запитає про ці активи, виконувач може легко послатися на список незатверджених активів і пояснити їх відсутність в затверджених запасах."]
[null,"Видавець","Номер поліса","Телефон","Бенефіціарій","Номінальна вартість ","Грошова вартість ","Нотатки"]
[]
[]
[]
[]
[]
[null,"Підсумок",{"$nulls":3},{"$f":"SUBTOTAL(109,tblСтрахування[[Номінальна вартість ]])","v":{"v":0,"d":"0.00 ₴"}},{"$f":"SUBTOTAL(109,tblСтрахування[[Грошова вартість ]])","v":{"v":0,"d":"0.00 ₴"}}]
[]
[null,"Приватні позики та іпотечні кредити"]
[null,"Складіть список приватних позик й іпотечних кредитів, де померла особа була позикодавцем."]
[null,"Ім’я позичальника","Адреса","Телефон","Тип","Вихідна сума","Залишок боргу ","Нотатки"]
[]
[]
[]
[]
[]
[null,"Підсумок",{"$nulls":3},{"$f":"SUBTOTAL(109,tblІпотечніКредити[Вихідна сума])","v":{"v":0,"d":"0.00 ₴"}},{"$f":"SUBTOTAL(109,tblІпотечніКредити[[Залишок боргу ]])","v":{"v":0,"d":"0.00 ₴"}}]
[]
[null,"Відсотки в інших нерухомостях і довірчих об’єктах"]
[null,"Складіть список активів, зареєстрованих на ім’я померлої особи від імені інших осіб (наприклад, активи, для яких померла особа виступала як довірена або активи у власності за довіреністю)."]
[null,"Назва нерухомості або довірчого об’єкта","Ім’я виконавця або довіреної особи","Телефон","Адреса","Електронна адреса","Сума розподілу","Нотатки"]
[]
[]
[]
[]
[]
[null,"Підсумок",{"$nulls":4},{"$f":"SUBTOTAL(109,tblДовірчаВласність[Сума розподілу])","v":{"v":0,"d":"0.00 ₴"}}]
[]
[null,"Рухоме майно та інші активи"]
[null,"Створіть список усіх особистих речей, наприклад, автомобілів, прикрас, мистецтва, антикваріату, меблів. Включіть речі, які, можливо, зберігалися в сейфі."]
[null,"Опис речей","Розташування","Телефон","Контакт","Бенефіціарій","Вартість ","Нотатки"]
[]
[]
[]
[]
[]
[null,"Підсумок",{"$nulls":4},{"$f":"SUBTOTAL(109,tblІншіАктиви[[Вартість ]])","v":{"v":0,"d":"0.00 ₴"}}]

{"sheet":"Затверджені зобов’язання","index":2,"n_rows":58,"n_cols":8,"rows_kept":58,"merged":[[0,1,0,7],[1,1,5,7],[6,1,6,7],[10,1,10,7],[20,1,20,7],[30,1,30,7],[40,1,40,7],[50,1,50,7]]}
[]
[null,"Затверджені зобов’язання"]
[]
[]
[]
[]
[null,"Використовуйте цей аркуш, щоб зібрати відомості про зобов’язання майна як місцевого, так і закордонного. Вам потрібна буде оцінка кожного зобов’язання в день смерті."]
[]
[null,"Усього активів",{"$nulls":4},{"$f":"SUM(G18,G28,G38,G48,G58)","v":{"v":0,"d":"0.00 ₴"}}]
[]
[null,"Іпотеки"]
[null,"Фінансова установа ","Адреса","Телефон","Титул","Номер рахунку","Баланс ","Нотатки"]
[]
[]
[]
[]
[]
[null,"Підсумок",{"$nulls":4},{"$f":"SUBTOTAL(109,tblБанківськіРахунки2[[Баланс ]])","v":{"v":0,"d":"0.00 ₴"}}]
[]
[]
[null,"Особисті позики та кредитні лінії"]
[null,"Фінансова установа","Адреса","Телефон"," Номер рахунку","Тип","Баланс ","Нотатки"]
[]
[]
[]
[]
[]
[null,"Підсумок",{"$nulls":4},{"$f":"SUBTOTAL(109,tblОсобистіІнвестиції3[[Баланс ]])","v":{"v":0,"d":"0.00 ₴"}}]
[]
[]
[null,"Ділові інтереси"]
[null,"Назва компанії","Адреса"," Телефон"," Контакт","Тип","Вартість ","Нотатки"]
[]
[]
[]
[]
[]
[null,"Підсумок",{"$nulls":4},{"$f":"SUBTOTAL(109,tblДіловіІнтереси4[[Вартість ]])","v":{"v":0,"d":"0.00 ₴"}}]
[]
[]
[null,"Кредитні картки"]
[null,"Кредитна картка компанії","Адреса компанії","Телефон","Номер картки","Дата завершення терміну дії ","Баланс ","Нотатки"]
[]
[]
[]
[]
[]
[null,"Підсумок",{"$nulls":4},{"$f":"SUBTOTAL(109,tblНерухомість5[[Баланс ]])","v":{"v":0,"d":"0.00 ₴"}}]
[]
[]
[null,"Інші зобов’язання"]
[null,"Опис речей","Розташування","Телефон","Контакт","Бенефіціарій","Вартість ","Нотатки"]
[]
[]
[]
[]
[]
[null,"Підсумок",{"$nulls":4},{"$f":"SUBTOTAL(109,tblПенсійніПлани6[[Вартість ]])","v":{"v":0,"d":"0.00 ₴"}}]